Cogmind - Beta 14 @@@ ROGUE MODE // 2024.08.15 @ 15:59:36 Player: gigi283 Result: Destroyed by HU-09J(R) with Subdweller Beam Cannon Performance ------------- Evolutions (0) 0 Regions Visited (2) 400 Robots Destroyed (12) 60 Value Destroyed (367) 367 Prototype IDs (11) 220 Alien Tech Used (0) 0 Bonus (0) 0 TOTAL SCORE: 1047 Bonus ------- None Cogmind --------- Core Integrity 0/250 Matter 290/300 Energy 42/160 System Corruption 0% Temperature Cool (11) Movement Rolling (120) Ox1 Location -10/Subcaves Parts ------- > --- POWER (1+1) ------ Light Nuclear Core > --- PROPULSION (2) --- Subdweller Monowheel > --- UTILITY (2) ------ Medium Storage Unit Signal Interpreter > --- WEAPON (2) ------- Powered Cannon > --- INVENTORY (10) --- Ion Engine Improved Heat Sink Sensor Array ECM Suite Core Shielding Makeshift Light Armor Plating Mining Laser Peak State ------------ > --- POWER ------------ Light Nuclear Core > --- PROPULSION ------- Subdweller Monowheel > --- UTILITY ---------- Medium Storage Unit Signal Interpreter > --- WEAPON ----------- Powered Cannon > --- INVENTORY -------- Ion Engine Improved Heat Sink Sensor Array ECM Suite Core Shielding Makeshift Light Armor Plating Mining Laser [Rating: 22] Favorites ----------- Power Ion Engine Engine Ion Engine Power Core Light Nuclear Core Propulsion Compact Wheel Wheel Compact Wheel Utility Signal Interpreter Device Sensor Array Storage Medium Storage Unit Processor Signal Interpreter Weapon EM Pulse Gun Energy Gun EM Pulse Gun Energy Cannon Powered Cannon Ballistic Gun Light Assault Rifle Launcher Subdweller Shrapnel Launcher Special Weapon Mining Laser Build | -11 -10 -10 ------- Run | Yrd Mat Sub Slots Evolved . | . . . Power . | . . . Propulsion . | . . . Utility . | . . . Weapon . | . . . Parts Attached 20 | 5 5 10 Power 3 | 1 1 1 Engine 2 | 1 1 . Core 1 | . . 1 Reactor . | . . . Propulsion 4 | 2 . 2 Treads . | . . . Leg . | . . . Wheel 4 | 2 . 2 Hover . | . . . Flight . | . . . Utility 4 | 1 3 . Device 1 | . 1 . Storage 2 | 1 1 . Processor 1 | . 1 . Hackware . | . . . Protection . | . . . Artifact . | . . . Weapon 9 | 1 1 7 Energy Gun 2 | . 1 1 Energy Cannon 1 | . . 1 Ballistic Gun 3 | 1 . 2 Ballistic Cannon . | . . . Launcher 1 | . . 1 Special Weapon 2 | . . 2 Impact Weapon . | . . . Slashing Weapon . | . . . Piercing Weapon . | . . . Special Melee Weapon . | . . . Unidentified Prototypes . | . . . Parts Lost 8 | . . 8 Power . | . . . Propulsion 3 | . . 3 Utility . | . . . Weapon 5 | . . 5 Highest Loss Streak 4 | . . 4 To Critical Strikes . | . . . Average Slot Usage (%) 90 | . 93 88 Engine 12 | . 14 11 Core 1 | . . 1 Wheel 24 | . 28 22 Storage 13 | . 14 13 Processor 12 | . 8 13 Energy Gun 9 | . 11 8 Energy Cannon 1 | . . 1 Ballistic Gun 8 | . 14 5 Special Weapon 5 | . . 7 Peak Build Rating 22 | 5 8 22 Average Rating 8 | 4 7 10 On Entrance 4 | . 5 8 Naked Turns . | . . . Heaviest Build 26 | 9 18 26 Greatest Support 32 | 32 32 32 Greatest Overweight (x) 7 | . . 7 Average Overweight (x) . | . . . Largest Inventory Capacity 10 | 8 10 10 Average Capacity 9 | 7 9 10 Most Carried 10 | 5 10 10 Average Carried 8 | 2 7 8 Final Capacity 10 | 8 10 10 Final Carried 10 | 5 10 7 Class Distribution -------------------- 100% | Mutant Dominant Class ---------------- Mutant | -10/Materials Mutant | -10/Subcaves Resources | -11 -10 -10 ----------- Run | Yrd Mat Sub Matter Collected 530 | 171 157 202 Remotely . | . . . Salvage Created 442 | 24 183 235 Parts 31 | 3 14 14 Haulers Intercepted 1 | . 1 . Recyclers Shooed . | . . . Parts Field Recycled . | . . . Retrieved Matter . | . . . Parts Self-Destructed 2 | . . 2 Prevented 2 | . . 2 Kills | -11 -10 -10 ------- Run | Yrd Mat Sub Combat Hostiles Destroyed 8 | . 2 6 Guns 5 | . 2 3 Cannons 3 | . . 3 Classes Destroyed 6 | 1 3 2 Tunneler 1 | 1 . . Hauler 1 | . 1 . Watcher 2 | . 2 . Grunt 2 | . 2 . Sentry 1 | . . 1 Subdweller 5 | . . 5 Best Kill Streak 2 | 1 2 2 Combat Bots Only 2 | . 1 2 Max Kills in Single Turn 1 | 1 1 1 Gunslinging . | . . . Exploded . | . . . Melee . | . . . Uniques/NPCs Destroyed . | . . . Combat | -11 -10 -10 -------- Run | Yrd Mat Sub Hostile Shots Fired 66 | . 9 57 Missed 24 | . 3 21 Damage Taken 939 | . 87 852 Core 256 | . 13 243 Absorbed by Shields . | . . . Core Remaining (%) 100 | 100 . . Volleys Fired 66 | 8 20 38 Largest 2 | 1 2 2 Hottest 128 | 20 60 128 Shots Fired 101 | 8 40 53 Gun 78 | 8 40 30 Cannon 6 | . . 6 Launcher 5 | . . 5 Special 12 | . . 12 Kinetic 51 | 8 20 23 Thermal 18 | . . 18 Explosive . | . . . Electromagnetic 32 | . 20 12 Robot Hit Streak 13 | 6 6 13 Robot Miss Streak 5 | 1 5 3 Penetration Max . | . . . Secondary Targets . | . . . Shots Hit Robots 52 | 7 18 27 Core Hits 26 | 2 10 14 Critical Kills . | . . . Critical Parts Destroyed . | . . . Critical Strikes . | . . . Melee Attacks . | . . . Impact . | . . . Slashing . | . . . Piercing . | . . . Sneak Attacks . | . . . Combat Hostiles . | . . . Follow-up Attacks . | . . . Damage Inflicted 886 | 62 228 596 Guns 538 | 62 228 248 Cannons 108 | . . 108 Explosions 192 | . . 192 Melee . | . . . Ramming . | . . . Kinetic 483 | 62 78 343 Thermal 156 | . . 156 Explosive . | . . . Electromagnetic 247 | . 150 97 Impact . | . . . Slashing . | . . . Piercing . | . . . Highest Corruption . | . . . Average Corruption . | . . . Corruption Purged . | . . . Corruption Blocked . | . . . Overload Shots . | . . . Overflow Damage . | . . . Projectiles . | . . . Explosions . | . . . Melee . | . . . Knockbacks . | . . . Impact . | . . . Kinetic . | . . . Secondary . | . . . Self-Inflicted Damage . | . . . Shots . | . . . Rammed . | . . . Targets Rammed . | . . . Kicked . | . . . Crushed . | . . . Highest Temperature 40 | . 40 6 Average Temperature 17 | . 18 2 Received Heat Transfer 195 | . 48 147 Siege Activations . | . . . Robots Corrupted . | . . . Combat Hostiles . | . . . Parts Fried 1 | . . 1 Impact Corruptions . | . . . Robots Melted . | . . . Combat Hostiles . | . . . Parts Melted 1 | . . 1 Heat Transferred 100 | . . 100 Parts Sabotaged . | . . . Parts Stolen . | . . . Parts Stripped . | . . . Power Chain Reactions . | . . . Alert | -11 -10 -10 ------- Run | Yrd Mat Sub Peak Influence 134 | 5 134 . Initial 3 | . 3 . Average 21 | 1 23 . Maximum Alert Level . | . . . Low Security (%) 100 | 100 100 . Level 1 . | . . . Level 2 . | . . . Level 3 . | . . . Level 4 . | . . . Level 5 . | . . . High Security . | . . . Max Security . | . . . Squads Dispatched . | . . . Investigation . | . . . Extermination . | . . . Reinforcement . | . . . Assault . | . . . Garrison . | . . . Intercept . | . . . Searches Triggered . | . . . Construction Impeded . | . . . Haulers Reinforced . | . . . Active Scanning Responses . | . . . Cargo Convoy Interrupts . | . . . Stealth | -11 -10 -10 --------- Run | Yrd Mat Sub Distress Signals . | . . . Communications Jammed . | . . . Distress Signals . | . . . Times Spotted 14 | . 6 8 Peak Tracking Total 3 | . 2 3 Tactical Retreats . | . . . Traps | -11 -10 -10 ------- Run | Yrd Mat Sub Traps Triggered 3 | . . 3 Indirectly . | . . . Trap Hack Attempts . | . . . Triggered . | . . . Disarmed . | . . . Reprogrammed . | . . . Reused . | . . . Traps Extracted . | . . . Installed . | . . . Triggered . | . . . Machines | -11 -10 -10 ---------- Run | Yrd Mat Sub Machines Disabled 1 | . . 1 Max in Single Turn 1 | . . 1 Machines Repaired . | . . . Machines Dismantled . | . . . Machines Sabotaged . | . . . Overloaded Fab Kills . | . . . Hacking | -11 -10 -10 --------- Run | Yrd Mat Sub Machines Accessed 4 | . 2 2 Terminals 2 | . 2 . Fabricators . | . . . Repair Stations . | . . . Recycling Units . | . . . Scanalyzers . | . . . Garrison Access . | . . . Total Hacks 9 | . 2 7 Successful 8 | . 1 7 Failed 1 | . 1 . Catastrophic . | . . . Database Lockouts . | . . . Manual . | . . . Terminals 2 | . 2 . Fabricators . | . . . Repair Stations . | . . . Recycling Units . | . . . Scanalyzers . | . . . Garrison Access . | . . . Terminal Hacks 8 | . 1 7 Record 6 | . . 6 Alert Level 1 | . 1 . Derelict Proto ID Bank 1 | . . 1 Fabricator Hacks . | . . . Repair Station Hacks . | . . . Recycling Unit Hacks . | . . . Scanalyzer . | . . . Garrison Access Hacks . | . . . Unauthorized Hacks . | . . . Terminals . | . . . Fabricators . | . . . Repair Stations . | . . . Recycling Units . | . . . Scanalyzers . | . . . Garrison Access . | . . . Data Cores Recovered . | . . . Used . | . . . Hacking Detections . | . . . Full Trace Events . | . . . Feedback Events . | . . . Feedback Blocked . | . . . Robot Schematics Acquired . | . . . Robots Built . | . . . Authchips . | . . . Time . | . . . Total Robot Build Rating . | . . . Part Schematics Acquired . | . . . Parts Built . | . . . Authchips . | . . . Time . | . . . Total Part Build Rating . | . . . Parts Repaired . | . . . Time . | . . . Parts Recycled . | . . . Recycled Matter . | . . . Retrieved Matter . | . . . Retrieved Components . | . . . Parts Scanalyzed . | . . . Part Schematics Acquired . | . . . Parts Damaged . | . . . Bothacking | -11 -10 -10 ------------ Run | Yrd Mat Sub Used RIF Installer . | . . . Robots Hacked . | . . . Non-combat . | . . . Combat . | . . . Robot Hacks Applied . | . . . Relay Couplers Released . | . . . Fabnet Peak Effective % . | . . . Robots Rewired . | . . . Allies Hacked . | . . . Hacks Repelled . | . . . Allies | -11 -10 -10 -------- Run | Yrd Mat Sub Total Allies . | . . . Largest Group . | . . . Highest-Rated Group . | . . . Highest-Rated Ally . | . . . Total Orders . | . . . Ally Attacks . | . . . Total Damage . | . . . Kills . | . . . Allies Corrupted . | . . . Allies Melted . | . . . Intel | -11 -10 -10 ------- Run | Yrd Mat Sub Robot Analysis Total . | . . . Derelict Logs Recovered 1 | . . 1 Drone Launches . | . . . Drone Recoveries . | . . . Exploration | -11 -10 -10 ------------- Run | Yrd Mat Sub Turns Passed 2528 | 89 781 1658 Spaces Moved 1640 | 63 293 1284 Core 51 | 6 . 45 Treads . | . . . Legs . | . . . Wheels 1589 | 57 293 1239 Hover . | . . . Flight . | . . . Fastest Speed 50 | 50 100 90 Average Speed 106 | 95 100 108 Slowest Speed 400 | 100 100 400 Overloaded Moves . | . . . Propulsion Burnouts . | . . . Robots Hopped . | . . . Cave-ins Triggered . | . . . Exploration Rate (%) 39 | 4 40 73 Regions Visited 2 Branch Regions 1 Pre-discovered Areas 1 | . . 1 Known Exits Taken 1 | . 1 . Unknown Exits Taken 1 | 1 . . Scrap Searched 3 | . . 3 Spaces Dug . | . . . Terrain Destroyed 59 | . . 59 Melee . | . . . Projectile 1 | . . 1 AOE 58 | . . 58 Terrain Rammed . | . . . Walls Destroyed . | . . . Machines Disabled . | . . . Actions | -11 -10 -10 --------- Run | Yrd Mat Sub Total 2301 | 85 745 1471 Wait 545 | . 416 129 Move 1638 | 62 292 1284 Hop . | . . . Pick Up 25 | 10 9 6 Fast Attach . | . . . Attach 16 | 5 3 8 Detach 2 | . 1 1 Swap 4 | . 2 2 Drop 5 | . 2 3 Fire 66 | 8 20 38 Melee . | . . . Ram . | . . . Kick . | . . . Crush . | . . . Escape Stasis . | . . . Rewire . | . . . Trap . | . . . Miscellaneous . | . . . Route ------- -11/Scrapyard -10/Materials (discovered 3 exits: *Mat / [*Min] / *Sub) -10/Subcaves (discovered 2 exits: *Mat x2) History --------- Turn | Location | Event 10 | -11/Scrapyard | Discovered new exit (range 16) 90 | -11/Scrapyard | Entered Materials 278 | -10/Materials | Discovered new exit (range 13) 307 | -10/Materials | Build established: Mutant 426 | -10/Materials | Discovered new exit (range 3) 428 | -10/Materials | Identified exit to Materials 847 | -10/Materials | Discovered new exit (range 6) 870 | -10/Materials | Identified exit to Subcaves 871 | -10/Materials | Entered Subcaves 1033 | -10/Subcaves | Visited Clippyterm 1036 | -10/Subcaves | Learned Research machine intel 1036 | -10/Subcaves | Learned Factory emergency access door positions 1154 | -10/Subcaves | Learned location of Zion (-7) 1154 | -10/Subcaves | Met a Zionite searching for "candidates" 1161 | -10/Subcaves | Learned Materials emergency access door positions 1163 | -10/Subcaves | Discovered new exit (range 3) 1165 | -10/Subcaves | Identified exit to Materials 1873 | -10/Subcaves | Lost 3 parts (1n2w) 1920 | -10/Subcaves | Discovered exit to Materials (range 10) 2100 | -10/Subcaves | Visited 4L-MR0's lab 2117 | -10/Subcaves | Found Powered Cannon 2185 | -10/Subcaves | Shifting Twisted Machinery released Sub. Laser 2187 | -10/Subcaves | Shifting Twisted Machinery released Sub. Laser 2231 | -10/Subcaves | Ambushed by Subdwellers from Twisted Machinery 2242 | -10/Subcaves | Ambushed by Subdweller buried in earth 2247 | -10/Subcaves | Core integrity fell below 50% 2248 | -10/Subcaves | Ambushed by Subdweller buried in earth 2268 | -10/Subcaves | Core integrity fell below 20% 2274 | -10/Subcaves | Attached Powered Cannon, gained temporary slot: Power 2299 | -10/Subcaves | Lost 4 parts (2n2w) 2529 | -10/Subcaves | Destroyed by HU-09J(R) with Subdweller Beam Cannon Last Messages --------------- 02272_ UF-WHI(R) destroyed. 02274_ Core temporarily expanded with Power slot. 02274_ 3U-ZKB(R) destroyed. 02276_ Z8-OED(R) destroyed. 02278_ Dropped Ion Engine. 02313_ Subatomizers dissect the Sub. Power Source. 02379_ Subatomizers dissect the Ion Engine, destroying it. 02389_ Subatomizers dissect the Sub. Machine Gun. 02407_ Acquired 84 matter. 02412_ Subatomizers dissect the Sub. Power Source. 02415_ Acquired 32 matter. 02439_ Subatomizers dissect the Sub. Power Source. 02483_ Acquired 18 matter. 02491_ Acquired Sub. Monowheel. Map ----- +----------------------------------------------------+ | ?????????????????????????????????????????????????? | | ?????????????????????????????????????????????????? | | ?????????????????????????????????????????????????? | | ?????????????????????????????????????????????????? | | ?????????????????????????????????????????????????? | | ?????????????????????????????????????????????????? | | ?????????????????????????????????????????????????? | | ?????????????????????????????????????????????????? | | ?????????????????????????????????????????????????? | | ?????????????????????????????????????????????????? | | ?????????????????????????????????????????????????? | | ?????????????????????????????????????###??######?? | | ?????????????????????????????????????#" ###" "##? | | ??????????????????????????????? ??????#"[ ## | | ???????????????????????????????"""######"[ | | ???????????????????????????????"""#" # #" # | | ???????????????????""????????? """"" #"" ### | | ?????????????????? " ????????#""""" ##" ## | | ???????????????## "" ""???????##""""### # ""## | | ???????????????# """"""????????#### # # "#### | | ???????????????# "" "??????????# ##"""#?## | | ???????????????#"" "??????????# ### "##??## | | ????????????##### #??????????# #### ###### | | ???????????## " ####????##### ### # ## | | ??????????## ;##?### # ^ | | ??????????# @### "" [[ ^^ ^ | | ??????????# "& &^^^ ^ ### | | ??????????# ! "###!#! #? | | ??????????# ;; |% "#?##### # ###? | | ??????????# ; ; ###???## #? | | ??????????#### ""##???### ^ ##? | | ?????????????# R "" #?????# ### #?? | | ?????????????# #; ; " ## ?####?####?? | | ?????????????# ###### " ### ##??????????? | | ?????????????# ?????# ;#?? #???????????? | | ?????????????# ??????# ##??# #???????????? | | ?????????????# ???????## #???## #???????????? | | ?????????????#????????# ##????? #???????????? | | ??????????????????????# ??????? ??????????? | | ??????????????????????# ??????? ??????????? | | ?????????????????????? ??????? ???????????? | | ?????????????????????%# ?????????????????????? | | ?????????????????????###### ?????????????????????? | | ??????????????????????????? ?????????????????????? | | ??????????????????????????? ?????????????????????? | | ??????????????????????????? ?????????????????????? | | ??????????????????????????? ????????????????????? | | ????????????????????????????#????????????????????? | | ?????????????????????????????????????????????????? | | ?????????????????????????????????????????????????? | +----------------------------------------------------+ Best States ------------- Heat Dissipation 25 Energy Generation 14 Energy Capacity 250 Matter Stores 300 Matter Capacity 300 Sight Range 16 Robot Scan Range 14 Terrain Scan Density 10 Evasion (%) 42 Item Schematics ----------------- None Robot Schematics ------------------ None Fabricated ------------ Nothing Alien Tech Used ----------------- None Achievements -------------- None Challenges ------------ None Game ------ Seed AntimissileReinforcedKit Manual? 0 Play Time 00:24:16 Cumulative 41.8 hours Start 2024.08.15 @ 15:37:02 End 2024.08.15 @ 15:59:36 Sessions 1 Manual Loads 0 Difficulty Rogue Special Mode None Game No. 59 Rogue 59 Adventurer 0 Explorer 0 Win Type - Total 0 Types 0/0/0/0/0/0/0/0/0 Lore% 12 Gallery% 27 Achievement% 24 Wizard Run 0 Options --------- Layout 1 ASCII 0 Keyboard 0 Movement Arrows Keybinds 0 Fullscreen 1 Font 16/SmallcapsGlow Map View 50x40 Zoom Use 0% Tactical HUD 1 Map Filters NONE Filters NONE Steam SD RUN: ce0fc4ce-913d-4810-8827-a51745e839c6